Workbook

Sheet List1
C2: Obec Čeladná, č.p. 1, 739 12 Čeladná
C3: Výsledky hlasování pro volby do Zastupitelstva obce Čeladná konaných ve dnech 23.9. a 24.9.2022
B6: Procento účasti u voleb v obci Čeladná | C6: okr. I | D6: okr. II | E6: okr. III | F6: okr. IV | G6: CELKEM
B7: Počet oprávněných voličů | C7: 1324 | D7: 475 | E7: 390 | F7: 154 | G7: =SUM(C7:F7) -> 2343
B8: Počet platných hlasů | C8: 816 | D8: 340 | E8: 261 | F8: 91 | G8: =SUM(C8:F8) -> 1508
B9: Procento účasti | C9: =SUM(C8/C7) -> 0.6163141994 | D9: =SUM(D8/D7) -> 0.7157894737 | E9: =SUM(E8/E7) -> 0.6692307692 | F9: =SUM(F8/F7) -> 0.5909090909 | G9: =SUM(G8/G7) -> 0.6436192915
A11: Název strany | B11: Jméno a Příjmení kandidáta | C11: okr. I | D11: okr. II | E11: okr. III | F11: okr. IV | G11: CELKEM
A12: Občanské fórum Beskydy | B12: Ing.Jiří Švrček, MBA | C12: 137 | D12: 34 | E12: 35 | F12: 12 | G12: =SUM(C12:F12) -> 218
B13: Oldřich Uher | C13: 122 | D13: 23 | E13: 31 | F13: 10 | G13: =SUM(C13:F13) -> 186
B14: Ing. Hana Hanke | C14: 125 | D14: 26 | E14: 27 | F14: 11 | G14: 189
B15: Ing. Jana Ožanová | C15: 124 | D15: 25 | E15: 30 | F15: 13 | G15: 192
B16: Ing. Radoslav Basel, MBA | C16: 122 | D16: 25 | E16: 28 | F16: 12 | G16: =SUM(C16:F16) -> 187
B17: Ing. Kateřina Hájková | C17: 116 | D17: 18 | E17: 27 | F17: 11 | G17: 172
B18: Ing. Bc.Olga Golasová | C18: 126 | D18: 26 | E18: 27 | F18: 13 | G18: 192
B19: Jiří Finger | C19: 115 | D19: 24 | E19: 29 | F19: 11 | G19: 179
B20: Ing. Jiřina Beňová | C20: 123 | D20: 23 | E20: 31 | F20: 11 | G20: 188
B21: MUDr. Jana Baselová | C21: 119 | D21: 20 | E21: 24 | F21: 13 | G21: 176
B22: Ing. Robert Básti | C22: 108 | D22: 16 | E22: 14 | F22: 9 | G22: 147
B23: Kristýna Bilčíková, Dis | C23: 111 | D23: 18 | E23: 22 | F23: 9 | G23: 160
B24: Ing. Markéta Kalnarová | C24: 108 | D24: 18 | E24: 21 | F24: 9 | G24: 156
B25: Lucie Jordánová, MBA | C25: 103 | D25: 14 | E25: 20 | F25: 9 | G25: 146
B26: Petr Osoha | C26: 99 | D26: 15 | E26: 20 | F26: 9 | G26: 143
B27: CELKEM | C27: =SUM(C12:C26) -> 1758 | D27: =SUM(D12:D26) -> 325 | E27: =SUM(E12:E26) -> 386 | F27: =SUM(F12:F26) -> 162 | G27: 2631
A28: KDU-ČSL | B28: Bc. Věra Golová | C28: 386 | D28: 181 | E28: 132 | F28: 33 | G28: 732
B29: Jiří Běčák | C29: 173 | D29: 48 | E29: 45 | F29: 16 | G29: 282
B30: Jaroslav Chromčák | C30: 148 | D30: 50 | E30: 39 | F30: 9 | G30: 246
B31: Jaroslav Kozel | C31: 159 | D31: 84 | E31: 54 | F31: 19 | G31: 316
B32: Ondřej Gola | C32: 160 | D32: 42 | E32: 43 | F32: 8 | G32: 253
B33: MUDr. Jiří Kahánek | C33: 223 | D33: 113 | E33: 73 | F33: 18 | G33: 427
B34: Irena Štefková | C34: 225 | D34: 88 | E34: 56 | F34: 23 | G34: 392
B35: Alena Běčáková | C35: 94 | D35: 20 | E35: 24 | F35: 8 | G35: 146
B36: Iveta Chromčáková | C36: 82 | D36: 14 | E36: 27 | F36: 5 | G36: 128
B37: Zdeněk Magnusek | C37: 125 | D37: 38 | E37: 32 | F37: 14 | G37: 209
B38: Karel Pajurek | C38: 104 | D38: 26 | E38: 38 | F38: 7 | G38: 175
B39: Silvie Starečková | C39: 134 | D39: 23 | E39: 35 | F39: 10 | G39: 202
B40: Šárka Rakowská | C40: 79 | D40: 14 | E40: 30 | F40: 5 | G40: 128
B41: Martin Oršulík | C41: 61 | D41: 5 | E41: 20 | F41: 4 | G41: 90
B42: Richard Karásek | C42: 54 | D42: 10 | E42: 20 | F42: 5 | G42: 89
B43: CELKEM | C43: =SUM(C28:C42) -> 2207 | D43: =SUM(D28:D42) -> 756 | E43: =SUM(E28:E42) -> 668 | F43: =SUM(F28:F42) -> 184 | G43: 3815
A44: ČELADNÁ SRDCEM A ROZUMEM | B44: Gina Horylová | C44: 21 | D44: 37 | E44: 16 | F44: 3 | G44: 77
B45: Jaroslav Špinka | C45: 10 | D45: 13 | E45: 2 | F45: 2 | G45: 27
B46: Zdeněk Blažek | C46: 10 | D46: 12 | E46: 5 | F46: 3 | G46: 30
B47: Irena Muchová | C47: 9 | D47: 13 | E47: 2 | F47: 3 | G47: 27
B48: Žaneta Fazekašová | C48: 15 | D48: 12 | E48: 2 | F48: 2 | G48: 31
B49: Pavel Šoch | C49: 11 | D49: 14 | E49: 3 | F49: 2 | G49: 30
B50: Radek Horyl | C50: 16 | D50: 14 | E50: 5 | F50: 5 | G50: 40
B51: Anna Halmová | C51: 15 | D51: 12 | E51: 3 | F51: 2 | G51: 32
B52: Jan Kolařík | C52: 12 | D52: 11 | E52: 4 | F52: 2 | G52: 29
B53: Zdeněk Vašut | C53: 14 | D53: 13 | E53: 2 | F53: 2 | G53: 31
B54: Robert Kolařík | C54: 12 | D54: 12 | E54: 4 | F54: 2 | G54: 30
B55: Zan Zemek | C55: 9 | D55: 10 | E55: 2 | F55: 3 | G55: 24
B56: Miloš Pavelec | C56: 12 | D56: 15 | E56: 2 | F56: 2 | G56: 31
B57: Magda Charbuláková | C57: 21 | D57: 18 | E57: 4 | F57: 2 | G57: 45
B58: Jan Pavelec | C58: 11 | D58: 16 | E58: 4 | F58: 2 | G58: 33
B59: CELKEM | C59: =SUM(C44:C58) -> 198 | D59: =SUM(D44:D58) -> 222 | E59: =SUM(E44:E58) -> 60 | F59: =SUM(F44:F58) -> 37 | G59: 517
A60: ODS | B60: Ing. Alžběta Kalábová | C60: 59 | D60: 29 | E60: 31 | F60: 6 | G60: 125
B61: JUDr.Ing. Jan Barton | C61: 56 | D61: 49 | E61: 25 | F61: 8 | G61: 138
B62: Ing. Pavel Hanke MBA | C62: 46 | D62: 24 | E62: 17 | F62: 8 | G62: 95
B63: Jiří Nováček | C63: 41 | D63: 17 | E63: 12 | F63: 5 | G63: 75
B64: Ing. Helena Kajpušová | C64: 43 | D64: 15 | E64: 17 | F64: 5 | G64: 80
B65: Ing. Pavel Beňa | C65: 45 | D65: 16 | E65: 16 | F65: 5 | G65: 82
B66: Mgr. Barbora Šafářová | C66: 40 | D66: 13 | E66: 17 | F66: 5 | G66: 75
B67: Ing. Pavel Herbáček | C67: 47 | D67: 12 | E67: 18 | F67: 4 | G67: 81
B68: Karin Hermanová | C68: 37 | D68: 9 | E68: 14 | F68: 4 | G68: 64
B69: Marie Lančová | C69: 47 | D69: 15 | E69: 16 | F69: 4 | G69: 82
B70: Jarmila Jancová | C70: 41 | D70: 8 | E70: 13 | F70: 4 | G70: 66
B71: Stanislav Bačák | C71: 33 | D71: 5 | E71: 12 | F71: 4 | G71: 54
B72: Roman Kalášek | C72: 32 | D72: 5 | E72: 9 | F72: 4 | G72: 50
B73: Jiří Šigut | C73: 37 | D73: 12 | E73: 9 | F73: 3 | G73: 61
B74: Mgr. Jana Kahánková | C74: 27 | D74: 8 | E74: 10 | F74: 3 | G74: 48
B75: CELKEM | C75: =SUM(C60:C74) -> 631 | D75: =SUM(D60:D74) -> 237 | E75: =SUM(E60:E74) -> 236 | F75: =SUM(F60:F74) -> 72 | G75: 1176
A76: Dobrá volba 2016 | B76: Pavol Lukša | C76: 536 | D76: 239 | E76: 175 | F76: 53 | G76: 1003
B77: MUDr. Milan Bajgar | C77: 424 | D77: 208 | E77: 154 | F77: 46 | G77: =SUM(C77:F77) -> 832
B78: Ing. Pavel Mikeska | C78: 449 | D78: 216 | E78: 144 | F78: 44 | G78: 853
B79: Mgr. Martina O´Reilly | C79: 402 | D79: 183 | E79: 135 | F79: 47 | G79: 767
B80: Kamil Otava | C80: 452 | D80: 206 | E80: 151 | F80: 46 | G80: 855
B81: Ing. Lukáš Bražina | C81: 413 | D81: 204 | E81: 146 | F81: 46 | G81: 809
B82: Barbora Pustelníková | C82: 376 | D82: 183 | E82: 133 | F82: 33 | G82: 725
B83: Renata Kopecká | C83: 417 | D83: 189 | E83: 136 | F83: 40 | G83: 782
B84: Ing. Karel Bojda Ph.D.MBA | C84: 360 | D84: 162 | E84: 124 | F84: 46 | G84: 692
B85: MUDr. Petr Pachman | C85: 386 | D85: 155 | E85: 126 | F85: 36 | G85: 703
B86: Ing. Lukáš Vrubel | C86: 348 | D86: 160 | E86: 121 | F86: 35 | G86: 664
B87: Eduard Čajánek | C87: 333 | D87: 149 | E87: 102 | F87: 43 | G87: 627
B88: Stanislav Tofel | C88: 311 | D88: 117 | E88: 93 | F88: 39 | G88: 560
B89: Sylva Uhlířová | C89: 318 | D89: 139 | E89: 104 | F89: 48 | G89: 609
B90: Ing. Horymír Marek | C90: 271 | D90: 139 | E90: 102 | F90: 33 | G90: 545
B91: CELKEM | C91: =SUM(C76:C90) -> 5796 | D91: =SUM(D76:D90) -> 2649 | E91: =SUM(E76:E90) -> 1946 | F91: =SUM(F76:F90) -> 635 | G91: =SUM(G76:G90) -> 11026
A92: NEZÁVISLÍ | B92: Mgr. Iveta Kubica Magnusková | C92: 100 | D92: 67 | E92: 35 | F92: 16 | G92: 218
B93: Ing. Jiří Plachý | C93: 46 | D93: 35 | E93: 15 | F93: 6 | G93: 102
B94: Bc.Miroslav Kraut | C94: 46 | D94: 21 | E94: 13 | F94: 7 | G94: 87
B95: Daniela Nešporková | C95: 39 | D95: 22 | E95: 12 | F95: 6 | G95: 79
B96: Mgr. Lucie Vítková | C96: 50 | D96: 22 | E96: 15 | F96: 7 | G96: 94
B97: Pavlína Dymáčková Winterová | C97: 30 | D97: 20 | E97: 11 | F97: 6 | G97: 67
B98: Ladislav Kryške | C98: 34 | D98: 18 | E98: 11 | F98: 8 | G98: 71
B99: Naděžda Rybářová | C99: 29 | D99: 18 | E99: 10 | F99: 7 | G99: 64
B100: Gabriel Figeľ | C100: 29 | D100: 16 | E100: 11 | F100: 6 | G100: 62
B101: Dáša Valeriánová | C101: 32 | D101: 17 | E101: 11 | F101: 6 | G101: 66
B102: Rostislav Kraut Dis. | C102: 32 | D102: 17 | E102: 11 | F102: 7 | G102: 67
B103: Ing. Jana Boháčová | C103: 26 | D103: 21 | E103: 12 | F103: 6 | G103: 65
B104: Rudolf Magnusek | C104: 48 | D104: 25 | E104: 16 | F104: 10 | G104: 99
B105: JUDr. Radim Kubica,MBA | C105: 35 | D105: 23 | E105: 13 | F105: 7 | G105: 78
B106: Svatava Barochová | C106: 27 | D106: 20 | E106: 9 | F106: 6 | G106: 62
B107: CELKEM | C107: =SUM(C92:C106) -> 603 | D107: =SUM(D92:D106) -> 362 | E107: =SUM(E92:E106) -> 205 | F107: =SUM(F92:F106) -> 111 | G107: =SUM(G92:G106) -> 1281
B108: CELKEM ZA VŠECHNY STRANY | C108: =SUM(C107,C91,C75,C59,C43,C27) -> 11193 | D108: =SUM(D107,D91,D75,D59,D43,D27) -> 4551 | E108: =SUM(E107+E91+E75+E59+E43+E27) -> 3501 | F108: =SUM(F107+F91+F75+F59+F43+F27) -> 1201 | G108: =SUM(G107+G91+G75+G59+G43+G27) -> 20446

Sheet List2

Sheet List3
